fUSD/lending_fUSD_20251027
["ID","MTS","AMOUNT","RATE_DAILY","PERIOD"]
[392516238,1761599465900,-500.0,0.0003589,7]
[392516239,1761599465909,-361.02884385,0.0003589,7]
[392516240,1761599465919,-649.06443272,0.0003589,7]
[392516241,1761599465928,-500.0,0.0003589,7]
[392516242,1761599465937,-500.0,0.0003589,7]
[392516243,1761599465946,-500.0,0.0003589,7]
[392516244,1761599465956,-500.0,0.0003589,7]
[392516245,1761599465965,-500.0,0.0003589,7]
[392516246,1761599465975,-586.99984641,0.0003589,7]
[392516247,1761599465984,-500.0,0.0003589,7]
[392516248,1761599465993,-500.0,0.0003589,7]
[392516249,1761599466003,-500.0,0.0003589,7]
[392516250,1761599466012,-557.37521527,0.0003589,7]
[392516251,1761599466021,-587.74620485,0.0003589,7]
[392516252,1761599466031,-500.0,0.0003589,7]
[392516253,1761599466041,-500.0,0.0003589,7]
[392516254,1761599466051,-500.0,0.0003589,7]
[392516255,1761599466060,-519.26967577,0.0003589,7]
[392516256,1761599466070,-500.0,0.0003589,7]
[392516257,1761599466079,-500.0,0.0003589,7]
[392516258,1761599466088,-500.0,0.0003589,7]
[392516259,1761599466098,-500.0,0.0003589,7]
[392516260,1761599466107,-500.0,0.0003589,7]
[392516261,1761599466116,-3266.96,0.0003589,7]
[392516262,1761599466125,-937.85,0.0003589,7]
[392516263,1761599466134,-500.0,0.0003589,7]
[392516264,1761599466143,-500.0,0.0003589,7]
[392516265,1761599466152,-152.38329665,0.0003589,7]
[392516266,1761599466162,-500.0,0.0003589,7]
[392516267,1761599466171,-500.0,0.0003589,7]
[392516268,1761599466181,-500.0,0.0003589,7]
[392516269,1761599466307,-500.0,0.0003589,7]
[392516270,1761599466317,-500.0,0.0003589,7]
[392516271,1761599466326,-500.0,0.0003589,7]
[392516272,1761599466339,-3363.04,0.0003589,7]
[392516273,1761599466348,-500.0,0.0003589,7]
[392516274,1761599466357,-500.0,0.0003589,7]
[392516275,1761599466366,-500.0,0.0003589,7]
[392516276,1761599466375,-1000.0,0.0003589,7]
[392516277,1761599466385,-571.88170992,0.0003589,7]
[392516278,1761599466394,-500.0,0.0003589,7]
[392516279,1761599466403,-500.0,0.0003589,7]
[392516280,1761599466412,-872.86,0.0003589,7]
[392516281,1761599466421,-587.93761478,0.0003589,7]
[392516282,1761599466430,-818.4,0.0003589,7]
[392516283,1761599466439,-500.0,0.0003589,7]
[392516284,1761599466448,-500.0,0.0003589,7]
[392516285,1761599466458,-230.82190092,0.0003589,2]
[392516286,1761599466466,-500.0,0.0003589,7]
[392516287,1761599466475,-416.5162556,0.0003589,7]
[392516288,1761599466485,-500.0,0.0003589,7]
[392516289,1761599466494,-500.0,0.0003589,7]
[392516290,1761599466504,-500.0,0.0003589,7]
[392516291,1761599466513,-500.0,0.0003589,7]
[392516292,1761599466523,-500.0,0.0003589,7]
[392516293,1761599466532,-500.0,0.0003589,7]
[392516294,1761599466541,-500.0,0.0003589,7]
[392516295,1761599466551,-437.43526422,0.0003589,7]
[392516296,1761599466560,-500.0,0.0003589,7]
[392516297,1761599466569,-625.74388428,0.0003589,7]
[392516298,1761599466578,-500.0,0.0003589,7]
[392516299,1761599466588,-530.14111369,0.0003589,7]
[392516300,1761599466599,-500.0,0.0003589,7]
[392516301,1761599466609,-546.75,0.0003589,7]
[392516302,1761599466619,-300.0,0.0003589,2]
[392516303,1761599466628,-2104.75,0.0003589,7]
[392516304,1761599466639,-511.92074923,0.0003589,7]
[392516305,1761599466648,-500.0,0.0003589,7]
[392516306,1761599466658,-500.0,0.0003589,7]
[392516307,1761599466668,-500.0,0.0003589,7]
[392516308,1761599466680,-500.0,0.0003589,7]
[392516309,1761599466690,-500.0,0.0003589,7]
[392516310,1761599466700,-500.0,0.0003589,7]
[392516311,1761599466709,-500.0,0.0003589,7]
[392516312,1761599466720,-500.0,0.0003589,7]
[392516313,1761599466730,-500.0,0.0003589,7]
[392516314,1761599466740,-500.0,0.0003589,7]
[392516315,1761599466749,-539.23270211,0.0003589,7]
[392516316,1761599466758,-500.0,0.0003589,7]
[392516317,1761599466769,-500.0,0.0003589,7]
[392516318,1761599466780,-500.0,0.0003589,7]
[392516319,1761599466789,-3276.13,0.0003589,7]
[392516320,1761599466803,-500.0,0.0003589,7]
[392516321,1761599466813,-3263.91,0.0003589,7]
[392516322,1761599466822,-500.0,0.0003589,7]
[392516323,1761599466831,-500.0,0.0003589,7]
[392516324,1761599466840,-500.0,0.0003589,7]
[392516325,1761599466851,-500.0,0.0003589,7]
[392516326,1761599466861,-500.0,0.0003589,7]
[392516327,1761599466871,-500.0,0.0003589,7]
[392516328,1761599466881,-500.0,0.0003589,7]
[392516329,1761599466892,-639.62,0.0003589,7]
[392516330,1761599466903,-500.0,0.0003589,7]
[392516331,1761599466912,-500.0,0.0003589,7]
[392516332,1761599466921,-500.0,0.0003589,7]
[392516333,1761599466932,-500.0,0.0003589,7]
[392516334,1761599466941,-500.0,0.0003589,7]
[392516335,1761599466950,-500.0,0.0003589,7]
[392516336,1761599466959,-500.0,0.0003589,7]
[392516337,1761599466969,-582.99355193,0.0003589,7]
[392516338,1761599466980,-500.0,0.0003589,7]
[392516339,1761599466990,-500.0,0.0003589,7]
[392516340,1761599467001,-500.0,0.0003589,7]
[392516341,1761599467011,-500.0,0.0003589,7]
[392516342,1761599467021,-500.0,0.0003589,7]
[392516343,1761599467030,-500.0,0.0003589,7]
[392516344,1761599467040,-500.0,0.0003589,7]
[392516345,1761599467050,-500.0,0.0003589,7]
[392516346,1761599467059,-500.0,0.0003589,7]
[392516347,1761599467068,-500.0,0.0003589,2]
[392516348,1761599467077,-506.77699883,0.0003589,7]
[392516349,1761599467087,-500.0,0.0003589,7]
[392516350,1761599467096,-500.0,0.0003589,7]
[392516351,1761599467106,-500.0,0.0003589,7]
[392516352,1761599467116,-500.0,0.0003589,7]
[392516353,1761599467126,-500.0,0.0003589,7]
[392516354,1761599467137,-500.0,0.0003589,7]
[392516355,1761599467147,-500.0,0.0003589,7]
[392516356,1761599467157,-500.0,0.0003589,7]
[392516357,1761599467167,-500.0,0.0003589,7]
[392516358,1761599467177,-500.0,0.0003589,7]
[392516359,1761599467186,-536.27994266,0.0003589,7]
[392516360,1761599467195,-1123.72,0.0003589,7]
[392516361,1761599467204,-500.0,0.0003589,7]
[392516362,1761599467215,-500.0,0.0003589,7]
[392516363,1761599467224,-500.0,0.0003589,7]
[392516364,1761599467233,-500.0,0.0003589,7]
[392516365,1761599467242,-507.43506288,0.0003589,7]
[392516366,1761599467251,-500.0,0.0003589,7]
[392516367,1761599467261,-538.96,0.0003589,7]
[392516368,1761599467271,-506.91393371,0.0003589,7]
[392516369,1761599467282,-500.0,0.0003589,7]
[392516370,1761599467294,-500.0,0.0003589,7]
[392516371,1761599467303,-500.0,0.0003589,7]
[392516372,1761599467312,-500.0,0.0003589,7]
[392516373,1761599467321,-519.048408,0.0003589,7]
[392516374,1761599467331,-500.0,0.0003589,7]
[392516375,1761599467344,-500.0,0.0003589,7]
[392516376,1761599467354,-500.0,0.0003589,7]
[392516377,1761599467363,-507.6225675,0.0003589,7]
[392516378,1761599467374,-500.0,0.0003589,7]
[392516379,1761599467385,-500.0,0.0003589,7]
[392516380,1761599467395,-500.0,0.0003589,7]
[392516381,1761599467404,-500.0,0.0003589,7]
[392516382,1761599467413,-500.0,0.0003589,7]
[392516383,1761599467423,-500.0,0.0003589,7]
[392516384,1761599467432,-500.0,0.0003589,7]
[392516385,1761599467442,-500.0,0.0003589,7]
[392516386,1761599467452,-620.83935228,0.0003589,7]
[392516387,1761599467461,-500.0,0.0003589,2]
[392516388,1761599467472,-500.0,0.0003589,7]
[392516389,1761599467482,-306.02631077,0.0003589,2]
[392516390,1761599467492,-766.43,0.0003589,7]
[392516391,1761599467502,-500.0,0.0003589,7]
[392516392,1761599467511,-500.0,0.0003589,7]
[392516393,1761599467521,-500.0,0.0003589,7]
[392516394,1761599467530,-500.0,0.0003589,7]
[392516395,1761599467544,-500.0,0.0003589,7]
[392516396,1761599467554,-500.0,0.0003589,7]
[392516397,1761599467564,-500.0,0.0003589,7]
[392516398,1761599467574,-500.0,0.0003589,7]
[392516399,1761599467584,-500.0,0.0003589,7]
[392516400,1761599467595,-507.86284133,0.0003589,7]
[392516401,1761599467605,-574.89,0.0003589,7]
[392516402,1761599467615,-500.0,0.0003589,7]
[392516403,1761599467626,-620.03293806,0.0003589,7]
[392516404,1761599467636,-3271.68,0.0003589,7]
[392516405,1761599467647,-500.0,0.0003589,7]
[392516406,1761599467656,-539.72716901,0.0003589,7]
[392516407,1761599467667,-834.46,0.0003589,7]
[392516408,1761599467679,-507.88628322,0.0003589,7]
[392516409,1761599467690,-513.18,0.0003589,7]
[392516410,1761599467700,-500.0,0.0003589,7]
[392516411,1761599467711,-500.0,0.0003589,7]
[392516412,1761599467721,-500.0,0.0003589,7]
[392516413,1761599467731,-500.0,0.0003589,7]
[392516414,1761599467744,-500.0,0.0003589,7]
[392516415,1761599467754,-500.0,0.0003589,7]
[392516416,1761599467763,-500.0,0.0003589,7]
[392516417,1761599467773,-500.0,0.0003589,7]
[392516418,1761599467783,-500.0,0.0003589,7]
[392516419,1761599467793,-500.0,0.0003589,7]
[392516420,1761599467803,-297.71730031,0.0003589,7]
[392516421,1761599467814,-500.0,0.0003589,7]
[392516422,1761599467825,-989.07,0.0003589,7]
[392516423,1761599467835,-500.0,0.0003589,7]
[392516424,1761599467845,-500.0,0.0003589,7]
[392516425,1761599467857,-500.0,0.0003589,7]
[392516426,1761599467867,-508.61143049,0.0003589,7]
[392516427,1761599467877,-300.0,0.0003589,2]
[392516428,1761599467886,-500.0,0.0003589,7]
[392516429,1761599467896,-500.0,0.0003589,7]
[392516430,1761599467907,-504.81235398,0.0003589,7]
[392516431,1761599467917,-810.73,0.0003589,7]
[392516432,1761599467930,-573.53229165,0.0003589,7]
[392516433,1761599467941,-500.0,0.0003589,7]
[392516434,1761599467951,-500.0,0.0003589,7]
[392516435,1761599467961,-500.0,0.0003589,7]
[392516436,1761599467972,-500.0,0.0003589,7]
[392516437,1761599467983,-500.0,0.0003589,7]
[392516438,1761599467993,-500.0,0.0003589,7]
[392516439,1761599468003,-500.0,0.0003589,7]
[392516440,1761599468013,-500.0,0.0003589,7]
[392516441,1761599468023,-505.92779237,0.0003589,7]
[392516442,1761599468032,-500.0,0.0003589,7]
[392516443,1761599468042,-3301.19,0.0003589,7]
[392516444,1761599468051,-500.0,0.0003589,7]
[392516445,1761599468060,-500.0,0.0003589,7]
[392516446,1761599468070,-500.0,0.0003589,7]
[392516447,1761599468080,-500.0,0.0003589,7]
[392516448,1761599468089,-500.0,0.0003589,7]
[392516449,1761599468099,-500.0,0.0003589,7]
[392516450,1761599468108,-500.0,0.0003589,7]
[392516451,1761599468121,-500.0,0.0003589,7]
[392516452,1761599468130,-500.0,0.0003589,7]
[392516453,1761599468140,-500.0,0.0003589,7]
[392516454,1761599468149,-500.0,0.0003589,7]
[392516455,1761599468158,-511.28466677,0.0003589,7]
[392516456,1761599468168,-500.0,0.0003589,7]
[392516457,1761599468178,-500.0,0.0003589,7]
[392516458,1761599468188,-500.0,0.0003589,7]
[392516459,1761599468198,-500.0,0.0003589,7]
[392516460,1761599468208,-500.0,0.0003589,7]
[392516461,1761599468217,-500.0,0.0003589,7]
[392516462,1761599468227,-500.0,0.0003589,7]
[392516463,1761599468236,-500.0,0.0003589,7]
[392516464,1761599468246,-500.0,0.0003589,7]
[392516465,1761599468255,-500.0,0.0003589,7]
[392516466,1761599468264,-3394.61,0.0003589,7]
[392516467,1761599468274,-500.0,0.0003589,7]
[392516468,1761599468283,-500.0,0.0003589,7]
[392516469,1761599468293,-500.0,0.0003589,7]
[392516470,1761599468302,-500.0,0.0003589,7]
[392516471,1761599468314,-2926.76,0.0003589,7]
[392516472,1761599468323,-500.0,0.0003589,7]
[392516473,1761599468333,-500.0,0.0003589,7]
[392516474,1761599468342,-500.0,0.0003589,7]
[392516475,1761599468352,-500.0,0.0003589,7]
[392516476,1761599468361,-500.0,0.0003589,7]
[392516477,1761599468370,-767.06,0.0003589,7]
[392516478,1761599468380,-500.0,0.0003589,7]
[392516479,1761599468389,-500.0,0.0003589,7]
[392516480,1761599468399,-500.0,0.0003589,7]
[392516481,1761599468408,-476.93667606,0.0003589,7]
[392516482,1761599468417,-500.0,0.0003589,7]
[392516483,1761599468427,-500.0,0.0003589,7]
[392516484,1761599468437,-512.08396427,0.0003589,7]
[392516485,1761599468446,-411.77865013,0.0003589,7]
[392516486,1761599468455,-500.0,0.0003589,7]
[392516487,1761599468465,-500.0,0.0003589,7]
[392516488,1761599468475,-495.09379083,0.0003589,7]
[392516489,1761599468484,-500.0,0.0003589,7]
[392516490,1761599468495,-156.53584652,0.0003589,7]
[392516491,1761599468643,-1154.29,0.0003589,7]
[392516492,1761599468661,-3388.64,0.0003589,7]
[392516493,1761599468674,-335.45164424,0.0003589,7]
[392516494,1761599468684,-500.0,0.0003589,7]
[392516495,1761599468694,-500.0,0.0003589,7]
[392516496,1761599468703,-500.0,0.0003589,7]
[392516497,1761599468714,-500.0,0.0003589,7]
[392516498,1761599468725,-500.0,0.0003589,7]
[392516499,1761599468735,-500.0,0.0003589,7]
[392516500,1761599468745,-500.0,0.0003589,7]
[392516501,1761599468755,-500.0,0.0003589,7]
[392516502,1761599468765,-500.0,0.0003589,7]
[392516503,1761599468775,-500.0,0.0003589,7]
[392516504,1761599468785,-500.0,0.0003589,7]
[392516505,1761599468795,-711.06,0.0003589,7]
[392516506,1761599468804,-500.0,0.0003589,7]
[392516507,1761599468814,-500.0,0.0003589,7]
[392516508,1761599468824,-500.0,0.0003589,7]
[392516509,1761599468833,-500.0,0.0003589,7]
[392516510,1761599468843,-500.0,0.0003589,7]
[392516511,1761599468853,-581.20777471,0.0003589,7]
[392516512,1761599468863,-500.0,0.0003589,7]
[392516513,1761599468872,-500.0,0.0003589,7]
[392516514,1761599468882,-500.0,0.0003589,7]
[392516515,1761599468891,-500.0,0.0003589,7]
[392516516,1761599468901,-500.0,0.0003589,2]
[392516517,1761599468911,-500.0,0.0003589,7]
[392516518,1761599468920,-500.0,0.0003589,7]
[392516519,1761599468930,-500.0,0.0003589,7]
[392516520,1761599468940,-500.0,0.0003589,7]
[392516521,1761599468949,-500.0,0.0003589,7]
[392516522,1761599468959,-3001.9,0.0003589,7]
[392516523,1761599468969,-500.0,0.0003589,7]
[392516524,1761599468979,-500.0,0.0003589,3]
[392516525,1761599468988,-500.0,0.0003589,7]
[392516526,1761599468998,-1918.79,0.0003589,7]
[392516527,1761599469008,-500.0,0.0003589,7]
[392516528,1761599469017,-500.0,0.0003589,7]
[392516529,1761599469027,-500.0,0.0003589,7]
[392516530,1761599469037,-500.0,0.0003589,7]
[392516531,1761599469046,-500.0,0.0003589,7]
[392516532,1761599469055,-500.0,0.0003589,7]
[392516533,1761599469065,-500.0,0.0003589,7]
[392516534,1761599469074,-500.0,0.0003589,7]
[392516535,1761599469085,-500.0,0.0003589,7]
[392516536,1761599469095,-500.0,0.0003589,7]
[392516537,1761599469104,-500.0,0.0003589,7]
[392516538,1761599469113,-1559.73,0.0003589,7]
[392516539,1761599469123,-500.0,0.0003589,7]
[392516540,1761599469133,-500.0,0.0003589,7]
[392516541,1761599469143,-3341.12,0.0003589,7]
[392516542,1761599469152,-500.0,0.0003589,7]
[392516543,1761599469162,-500.0,0.0003589,7]
[392516544,1761599469172,-500.0,0.0003589,7]
[392516545,1761599469182,-490.48346376,0.0003589,7]
[392516546,1761599469191,-378.93409372,0.0003589,7]
[392516547,1761599469204,-500.0,0.0003589,7]
[392516548,1761599469214,-500.0,0.0003589,7]
[392516549,1761599469223,-500.0,0.0003589,7]
[392516550,1761599469233,-984.63,0.0003589,7]
[392516551,1761599469243,-500.0,0.0003589,7]
[392516552,1761599469252,-500.0,0.0003589,7]
[392516553,1761599469263,-500.0,0.0003589,7]
[392516554,1761599469273,-592.68075302,0.0003589,7]
[392516555,1761599469283,-500.0,0.0003589,7]
[392516556,1761599469293,-2563.99,0.0003589,7]
[392516557,1761599469303,-500.0,0.0003589,7]
[392516558,1761599469312,-162.83614028,0.0003589,7]
[392516559,1761599469322,-500.0,0.0003589,7]
[392516560,1761599469332,-500.0,0.0003589,7]
[392516561,1761599469342,-500.0,0.0003589,7]
[392516562,1761599469353,-500.0,0.0003589,2]
[392516563,1761599469363,-500.0,0.0003589,7]
[392516564,1761599469372,-500.0,0.0003589,7]
[392516565,1761599469382,-500.0,0.0003589,7]
[392516566,1761599469391,-500.0,0.0003589,7]
[392516567,1761599469401,-500.0,0.0003589,7]
[392516568,1761599469412,-500.0,0.0003589,7]
[392516569,1761599469422,-500.0,0.0003589,7]
[392516570,1761599469432,-500.0,0.0003589,7]
[392516571,1761599469442,-500.0,0.0003589,7]
[392516572,1761599469451,-317.0521573,0.0003589,7]
[392516573,1761599469461,-509.14127794,0.0003589,7]
[392516574,1761599469471,-500.0,0.0003589,7]
[392516575,1761599469480,-500.0,0.0003589,7]
[392516576,1761599469489,-500.0,0.0003589,2]
[392516577,1761599469499,-500.0,0.0003589,7]
[392516578,1761599469508,-500.0,0.0003589,7]
[392516579,1761599469518,-358.56232962,0.0003589,7]
[392516580,1761599469528,-500.0,0.0003589,7]
[392516581,1761599469537,-500.0,0.0003589,7]
[392516582,1761599469547,-500.0,0.0003589,2]
[392516583,1761599469556,-500.0,0.0003589,7]
[392516584,1761599469566,-437.34075489,0.0003589,7]
[392516585,1761599469579,-500.0,0.0003589,7]
[392516586,1761599469589,-509.80927435,0.0003589,7]
[392516587,1761599469599,-500.0,0.0003589,2]
[392516588,1761599469608,-500.0,0.0003589,7]
[392516589,1761599469618,-500.0,0.0003589,7]
[392516590,1761599469628,-541.0782508,0.0003589,7]
[392516591,1761599469637,-2556.31,0.0003589,7]
[392516592,1761599469647,-645.48019357,0.0003589,7]
[392516593,1761599469656,-500.0,0.0003589,2]
[392516594,1761599469666,-500.0,0.0003589,7]
[392516595,1761599469676,-500.0,0.0003589,7]
[392516596,1761599469685,-500.0,0.0003589,7]
[392516597,1761599469694,-500.0,0.0003589,2]
[392516598,1761599469704,-500.0,0.0003589,7]
[392516599,1761599469714,-500.0,0.0003589,7]
[392516600,1761599469724,-500.0,0.0003589,7]
[392516601,1761599469734,-693.42,0.0003589,7]
[392516602,1761599469743,-301.03055678,0.0003589,7]
[392516603,1761599469752,-500.0,0.0003589,7]
[392516604,1761599469762,-500.0,0.0003589,7]
[392516605,1761599469771,-727.56,0.0003589,7]
[392516606,1761599469784,-603.59614907,0.0003589,7]
[392516607,1761599469795,-500.0,0.0003589,7]
[392516608,1761599469807,-620.83,0.0003589,7]
[392516609,1761599469816,-500.0,0.0003589,7]
[392516610,1761599469826,-503.53910214,0.0003589,7]
[392516611,1761599469835,-1649.98,0.0003589,7]
[392516612,1761599469845,-500.0,0.0003589,7]
[392516613,1761599469855,-500.0,0.0003589,7]
[392516614,1761599469865,-500.0,0.0003589,7]
[392516615,1761599469875,-633.83,0.0003589,7]
[392516616,1761599469886,-500.0,0.0003589,7]
[392516617,1761599469895,-500.0,0.0003589,7]
[392516618,1761599469906,-500.0,0.0003589,7]
[392516619,1761599469919,-533.56160969,0.0003589,7]
[392516620,1761599469929,-500.0,0.0003589,7]
[392516621,1761599469939,-857.09,0.0003589,7]
[392516622,1761599469950,-476.74869043,0.000359,120]
[392516623,1761599469960,-2900.0,0.000359,13]
[392516624,1761599469974,-9204.15908839,0.00035939,2]
[392516625,1761599469984,-160.065,0.00035953,2]
[392516626,1761599469993,-152.43,0.00035957,60]
[392516627,1761599470003,-150.3,0.00035961,60]
[392516628,1761599470012,-51355.19141661,0.00035999,2]
[392516629,1761599470022,-1307.22399574,0.00036,120]
[392516630,1761599470032,-43119.83699204,0.00036,2]
[392516631,1761599470041,-177.0,0.00036,30]
[392516632,1761599470051,-2000.0,0.00036,2]
[392516633,1761599470060,-177.48346819,0.00036,2]
[392516634,1761599470069,-160.065,0.00036053,2]
[392516635,1761599470078,-152.43,0.00036057,60]
[392516636,1761599470088,-150.3,0.00036061,60]
[392516637,1761599470097,-671.95735868,0.00036092,2]
[392516638,1761599470107,-552.62,0.000361,60]
[392516639,1761599470117,-1087.12879184,0.00036106,8]
[392516640,1761599470126,-9204.15908839,0.00036117,2]
[392516641,1761599470136,-157.0,0.0003613,120]
[392516642,1761599470145,-500.0,0.00036133,5]
[392516643,1761599470155,-157.0,0.0003614,120]
[392516644,1761599470168,-157.0,0.0003615,120]
[392516645,1761599470177,-8446.87034481,0.00036153,2]
[392516646,1761599470186,-160.065,0.00036153,2]
[392516647,1761599470195,-1068.77454671,0.00036154,2]
[392516648,1761599470204,-152.43,0.00036157,60]
[392516649,1761599470214,-150.3,0.00036161,60]
[392516650,1761599470223,-1023.8,0.00036164,2]
[392516651,1761599470232,-500.0,0.00036164,7]
[392516652,1761599470242,-500.0,0.00036164,7]
[392516653,1761599470251,-500.0,0.00036164,7]
[392516654,1761599470261,-500.0,0.00036164,7]
[392516655,1761599470270,-500.0,0.00036164,7]
[392516656,1761599470280,-500.0,0.00036164,7]
[392516657,1761599470289,-500.0,0.00036164,7]
[392516658,1761599470299,-500.0,0.00036164,2]
[392516659,1761599470309,-5308.862808,0.00036164,7]
[392516660,1761599470318,-510.400191,0.00036164,7]
[392516661,1761599470328,-500.0,0.00036164,7]
[392516662,1761599470338,-204.248877,0.00036164,7]
[392516663,1761599470347,-13698.579894,0.00036164,7]
[392516664,1761599470357,-496.966155,0.00036164,7]
[392516665,1761599470368,-912.93499,0.00036164,7]
[392516666,1761599470378,-500.0,0.00036164,7]
[392516667,1761599470388,-1002.22280363,0.00036164,120]
[392516668,1761599470398,-500.0,0.00036164,2]
[392516669,1761599470408,-500.0,0.00036164,7]
[392516670,1761599470418,-507.7543051,0.00036164,7]
[392516671,1761599470428,-500.0,0.00036164,7]
[392516672,1761599470437,-500.0,0.00036164,7]
[392516673,1761599470446,-500.0,0.00036164,7]
[392516674,1761599470456,-433.86142569,0.00036164,7]
[392516675,1761599470466,-500.0,0.00036164,7]
[392516676,1761599470475,-500.0,0.00036164,7]
[392516677,1761599470484,-1536.05,0.00036164,7]
[392516678,1761599470494,-500.0,0.00036164,7]
[392516679,1761599470503,-500.0,0.00036164,7]
[392516680,1761599470513,-500.0,0.00036164,7]
[392516681,1761599470523,-500.0,0.00036164,7]
[392516682,1761599470532,-160.6027218,0.00036164,7]
[392516683,1761599470542,-500.0,0.00036164,7]
[392516684,1761599470551,-500.0,0.00036164,7]
[392516685,1761599470561,-500.0,0.00036164,7]
[392516686,1761599470570,-500.0,0.00036164,7]
[392516687,1761599470580,-500.0,0.00036164,2]
[392516688,1761599470589,-500.0,0.00036164,7]
[392516689,1761599470599,-500.0,0.00036164,7]
[392516690,1761599470609,-500.0,0.00036164,2]
[392516691,1761599470619,-500.0,0.00036164,7]
[392516692,1761599470629,-604.56,0.00036164,7]
[392516693,1761599470639,-225.51645103,0.00036164,7]
[392516694,1761599470649,-500.0,0.00036164,7]
[392516695,1761599470659,-500.0,0.00036164,7]
[392516696,1761599470846,-510.06162815,0.00036164,7]
[392516697,1761599470856,-500.0,0.00036164,7]
[392516698,1761599470865,-500.0,0.00036164,7]
[392516699,1761599470875,-500.0,0.00036164,2]
[392516700,1761599470885,-506.13206019,0.00036164,7]
[392516701,1761599470894,-500.0,0.00036164,7]
[392516702,1761599470904,-500.0,0.00036164,7]
[392516703,1761599470913,-500.0,0.00036164,7]
[392516704,1761599470922,-500.0,0.00036164,7]
[392516705,1761599470931,-500.0,0.00036164,7]
[392516706,1761599470941,-277.92767606,0.00036164,7]
[392516707,1761599470950,-500.0,0.00036164,7]
[392516708,1761599470959,-500.0,0.00036164,7]
[392516709,1761599470969,-509.07902943,0.00036164,7]
[392516710,1761599470979,-500.0,0.00036164,7]
[392516711,1761599470990,-300.0,0.00036164,7]
[392516712,1761599471000,-500.0,0.00036164,7]
[392516713,1761599471009,-390.77755543,0.00036164,7]
[392516714,1761599471018,-500.0,0.00036164,7]
[392516715,1761599471027,-500.0,0.00036164,7]
[392516716,1761599471036,-648.52159457,0.00036164,7]
[392516717,1761599471045,-500.0,0.00036164,7]
[392516718,1761599471054,-500.0,0.00036164,7]
[392516719,1761599471063,-600.0,0.00036164,120]
[392516720,1761599471072,-509.89679515,0.00036164,7]
[392516721,1761599471085,-500.0,0.00036164,7]
[392516722,1761599471094,-500.0,0.00036164,7]
[392516723,1761599471103,-500.0,0.00036164,7]
[392516724,1761599471113,-500.0,0.00036164,7]
[392516725,1761599471123,-500.0,0.00036164,7]
[392516726,1761599471132,-589.2,0.00036164,7]
[392516727,1761599471142,-500.0,0.00036164,7]
[392516728,1761599471151,-500.0,0.00036164,7]
[392516729,1761599471161,-500.0,0.00036164,7]
[392516730,1761599471171,-500.0,0.00036164,7]
[392516731,1761599471180,-500.0,0.00036164,7]
[392516732,1761599471189,-500.0,0.00036164,7]
[392516733,1761599471199,-500.0,0.00036164,7]
[392516734,1761599471208,-500.0,0.00036164,7]
[392516735,1761599471218,-255.02866599,0.00036164,7]
[392516736,1761599471227,-500.0,0.00036164,7]
[392516737,1761599471237,-500.0,0.00036164,7]